bitfinex/quotes_SOLUSD_20240727
["timestamp","ask_amount","ask_price","bid_price","bid_amount"]
[1722087139293,20.0,187.23,187.12,45.0]
[1722087140104,5.3413,187.22,187.12,45.0]
[1722087140302,5.56330047,187.24,187.12,45.0]
[1722087140485,5.341,187.23,187.12,45.0]
[1722087141004,5.3414,187.22,187.12,45.0]
[1722087141497,5.56330047,187.24,187.12,45.0]
[1722087141673,5.56330047,187.24,187.12,69.73]
[1722087141878,20.0,187.23,187.12,85.8]
[1722087142491,20.0,187.24,187.12,85.8]
[1722087143300,20.0,187.26,187.12,85.8]
[1722087144096,5.3404,187.25,187.12,69.73]
[1722087144283,20.0,187.24,187.12,69.73]
[1722087144898,25.3408,187.24,187.12,69.73]
[1722087145696,5.3412,187.23,187.12,24.73]
[1722087146288,20.0,187.24,187.12,24.73]
[1722087146497,5.3413,187.22,187.12,24.73]
[1722087146699,5.3413,187.22,187.11,21.7462]
[1722087147694,5.341,187.23,187.12,45.0]
[1722087148002,20.0,187.22,187.12,45.0]
[1722087149295,20.0,187.23,187.12,45.0]
[1722087149692,20.0,187.23,187.13,1.06859945]
[1722087150202,5.3398,187.28,187.15,24.73]
[1722087150406,20.0,187.25,187.16,45.0]
[1722087150596,20.0,187.25,187.16,46.06832233]
[1722087150996,20.0,187.28,187.16,46.06832233]
[1722087151196,25.3396,187.28,187.16,46.06832233]
[1722087151904,25.3384,187.32,187.18,24.73]
[1722087152108,5.3382,187.33,187.19,46.06805632]
[1722087152687,25.3379,187.34,187.19,46.06805632]
[1722087153006,5.338,187.34,187.21,24.73]
[1722087153301,5.338,187.34,187.22,45.0]
[1722087153302,10.91282492,187.34,187.22,45.0]
[1722087153508,25.3383,187.33,187.22,45.0]
[1722087153704,20.0,187.37,187.24,22.918]
[1722087153903,5.3364,187.4,187.25,46.06777704]
[1722087154107,35.6307,187.41,187.25,46.06777704]
[1722087154416,46.54064526,187.41,187.27,24.73]
[1722087154613,40.9668,187.41,187.28,45.0]
[1722087154816,5.3361,187.4,187.28,45.0]
[1722087155318,25.3365,187.39,187.28,45.0]
[1722087155609,5.3367,187.38,187.28,45.0]
[1722087155810,20.0,187.37,187.28,45.0]
[1722087156412,41.20543401,187.41,187.28,45.0]
[1722087156413,25.3367,187.38,187.28,45.0]
[1722087157219,5.3373,187.36,187.24,22.918]
[1722087157407,20.0,187.38,187.24,23.9856717]
[1722087157713,46.54143401,187.41,187.27,24.73]
[1722087157888,20.0,187.4,187.28,1.06759364]
[1722087158291,35.6307,187.45,187.31,6.4007]
[1722087158494,20.0,187.45,187.33,16.5173]
[1722087158719,5.335,187.44,187.33,16.5173]
[1722087158897,5.3353,187.43,187.34,45.0]
[1722087159695,5.3353,187.43,187.33,16.5173]
[1722087159696,5.3356,187.42,187.33,16.5173]
[1722087160717,20.0,187.41,187.33,16.5173]
[1722087161602,25.3359,187.41,187.33,16.5173]
[1722087161815,5.3359,187.41,187.33,16.5173]
[1722087162319,25.3359,187.41,187.33,16.5173]
[1722087162818,20.0,187.41,187.33,16.5173]
[1722087163027,20.0,187.42,187.33,16.5173]
[1722087164721,20.0,187.44,187.33,16.5173]
[1722087164900,20.0,187.44,187.34,45.0]
[1722087165492,25.335,187.44,187.34,45.0]
[1722087165796,25.335,187.44,187.33,16.5173]
[1722087165997,25.3353,187.43,187.33,16.5173]
[1722087166420,20.0,187.42,187.33,16.5173]
[1722087166605,20.0,187.42,187.34,45.0]
[1722087167003,40.0,187.43,187.33,16.5173]
[1722087167313,45.3356,187.43,187.33,16.5173]
[1722087167817,20.0,187.43,187.34,1.06744983]
[1722087168009,5.57895478,187.46,187.35,1.06733713]
[1722087168211,25.3342,187.47,187.34,46.06733713]
[1722087168406,25.3342,187.47,187.36,1.06725952]
[1722087169120,5.3345,187.46,187.34,45.0]
[1722087169322,25.3347,187.45,187.34,45.0]
[1722087170099,20.0,187.45,187.34,45.0]
[1722087170313,25.3348,187.45,187.34,45.0]
[1722087170620,45.3348,187.45,187.34,45.0]
[1722087171209,5.3351,187.44,187.34,45.0]
[1722087171706,25.3354,187.43,187.33,16.5173]
[1722087171906,45.3354,187.43,187.33,16.5173]
[1722087173629,40.0,187.43,187.33,16.5173]
[1722087173817,20.0,187.43,187.34,45.0]
[1722087174007,20.0,187.44,187.34,45.0]
[1722087174621,20.0,187.44,187.33,16.5173]
[1722087175516,20.0,187.44,187.34,45.0]
[1722087175702,20.0,187.45,187.34,45.0]
[1722087176212,40.0,187.45,187.34,45.0]
[1722087176409,20.0,187.43,187.33,16.5173]
[1722087176728,25.3353,187.43,187.33,16.5173]
[1722087176932,20.0,187.43,187.33,16.5173]
[1722087177410,20.0,187.43,187.34,1.06745483]
[1722087177808,45.3347,187.45,187.34,1.06745483]
[1722087178032,5.335,187.44,187.34,1.06745483]
[1722087178244,20.0,187.43,187.34,1.06745483]
[1722087178440,20.0,187.43,187.35,1.06735647]
[1722087178722,20.0,187.43,187.34,45.0]
[1722087178928,20.0,187.44,187.34,45.0]
[1722087179304,20.0,187.45,187.34,45.0]
[1722087179505,5.56986764,187.47,187.35,1.06726702]
[1722087179717,5.56986764,187.47,187.36,1.06715915]
[1722087180035,5.3338,187.49,187.36,1.06715915]
[1722087180401,21.20194175,187.5,187.37,6.6481]
[1722087180604,26.53534175,187.5,187.38,45.0]
[1722087180820,20.0,187.49,187.38,45.0]
[1722087181041,25.334,187.48,187.38,45.0]
[1722087182936,20.0,187.48,187.38,45.0]
[1722087183526,20.0,187.48,187.39,15.4172]
[1722087183738,20.0,187.5,187.39,15.4172]
[1722087184230,20.0,187.5,187.4,45.0]
[1722087184412,25.3334,187.5,187.4,45.0]
[1722087185014,20.0,187.5,187.4,45.0]
[1722087185208,25.3335,187.5,187.39,15.4172]
[1722087186222,5.3336,187.49,187.39,15.4172]
[1722087186632,20.0,187.48,187.39,15.4172]
[1722087187146,25.3341,187.48,187.39,15.4172]
[1722087187430,5.3342,187.47,187.39,15.4172]
[1722087187608,20.0,187.46,187.39,15.4172]
[1722087187808,25.3339,187.48,187.39,15.4172]
[1722087188006,5.3343,187.47,187.39,15.4172]
[1722087188226,20.0,187.46,187.39,15.4172]
[1722087188422,45.3345,187.46,187.39,15.4172]
[1722087188634,5.3348,187.45,187.37,6.6481]
[1722087188929,20.0,187.44,187.37,6.6481]
[1722087189108,25.335,187.44,187.37,6.6481]
[1722087189318,45.335,187.44,187.37,6.6481]
[1722087189518,45.335,187.44,187.33,16.0933]
[1722087189838,5.3353,187.43,187.33,16.0933]
[1722087191424,45.335,187.44,187.33,16.0933]
[1722087192425,20.0,187.42,187.33,16.0933]
[1722087192753,25.3359,187.41,187.32,6.4225]
[1722087192929,5.3362,187.4,187.29,16.0933]
[1722087193125,20.0,187.39,187.29,16.0933]
[1722087193533,25.3365,187.39,187.29,16.0933]
[1722087194455,20.0,187.37,187.29,16.0933]
[1722087194746,20.0,187.36,187.29,16.0933]
[1722087195328,20.0,187.36,187.28,6.4225]
[1722087195329,25.3375,187.36,187.28,6.4225]
[1722087195528,20.0,187.36,187.25,16.0933]
[1722087196837,20.0,187.36,187.26,45.0]
[1722087197041,15.8335,187.37,187.26,46.06767953]
[1722087197259,15.8335,187.42,187.27,1.06767953]
[1722087197560,15.8335,187.42,187.28,31.1525]
[1722087197850,15.8335,187.42,187.29,46.06745619]
[1722087198054,15.8335,187.42,187.3,1.06745132]
[1722087198556,15.8335,187.42,187.29,45.0]
[1722087198758,20.0,187.41,187.29,45.0]
[1722087198919,25.3359,187.41,187.29,45.0]
[1722087199347,20.0,187.41,187.29,45.0]
[1722087202648,20.0,187.41,187.28,6.4225]
[1722087202828,64.73,187.38,187.25,16.0933]
[1722087203030,64.73,187.38,187.23,6.4225]
[1722087203031,20.0,187.3,187.23,6.4225]
[1722087203227,20.0,187.29,187.23,6.4225]
[1722087203454,35.8335,187.34,187.23,6.4225]
[1722087203752,20.0,187.33,187.23,6.4225]
[1722087204449,20.0,187.36,187.24,1.06782131]
[1722087204625,20.0,187.36,187.24,1.06776827]
[1722087204823,20.0,187.38,187.24,45.0]
[1722087206150,45.3367,187.38,187.24,45.0]
[1722087206337,5.3371,187.37,187.24,45.0]
[1722087206649,45.3373,187.36,187.24,45.0]
[1722087206953,20.0,187.35,187.24,45.0]
[1722087211436,20.0,187.35,187.25,15.9799]
[1722087211762,20.0,187.37,187.26,45.0]
[1722087212454,25.337,187.37,187.26,45.0]
[1722087212651,20.0,187.37,187.26,45.0]
[1722087213164,25.3358,187.42,187.27,1.067661]
[1722087213469,40.4131,187.44,187.29,15.9799]
[1722087213670,21.0181,187.44,187.3,45.0]
[1722087214037,21.0181,187.44,187.31,1.06745536]
[1722087214352,10.87052698,187.45,187.31,1.06745536]
[1722087215331,5.53572698,187.45,187.32,62.8665]
[1722087215550,20.0,187.51,187.36,6.0866]
[1722087215767,5.53363921,187.5,187.37,15.9799]
[1722087215940,5.53363921,187.5,187.37,60.9799]
[1722087216642,5.3336,187.49,187.37,60.9799]
[1722087217156,5.3339,187.48,187.37,60.9799]
[1722087217360,20.0,187.47,187.37,60.9799]
[1722087218243,25.3343,187.47,187.37,60.9799]
[1722087218443,5.3344,187.46,187.37,15.9799]
[1722087218853,20.0,187.45,187.37,15.9799]
[1722087219052,45.3348,187.45,187.37,15.9799]
[1722087219669,5.3351,187.44,187.37,15.9799]
[1722087219854,25.3354,187.43,187.37,15.9799]
[1722087220366,5.3356,187.42,187.37,15.9799]
[1722087220552,5.3376,187.35,187.27,6.0866]
[1722087220758,20.0,187.37,187.27,6.0866]
[1722087220759,20.0,187.34,187.27,6.0866]
[1722087221165,20.0,187.44,187.28,1.0677565]
[1722087221369,5.3359,187.41,187.27,6.0866]
[1722087221558,20.0,187.4,187.27,6.0866]
[1722087221952,20.0,187.4,187.28,45.0]
[1722087222367,25.3357,187.42,187.28,45.0]
[1722087222769,45.3357,187.42,187.28,45.0]
[1722087224059,5.336,187.41,187.28,45.0]
[1722087224257,20.0,187.4,187.28,45.0]
[1722087225471,20.0,187.4,187.29,16.2889]
[1722087225676,20.0,187.4,187.3,45.0]
[1722087225975,20.0,187.42,187.3,45.0]
[1722087226958,5.3359,187.41,187.3,45.0]
[1722087227381,20.0,187.4,187.3,45.0]
[1722087228278,20.0,187.4,187.29,16.2889]
[1722087228279,25.3362,187.4,187.29,16.2889]
[1722087228680,20.0,187.4,187.29,17.35646554]
[1722087228979,20.0,187.4,187.3,45.0]
[1722087229156,25.3359,187.41,187.3,45.0]
[1722087229985,20.0,187.41,187.3,46.06741071]
[1722087230159,20.0,187.44,187.3,45.0]
[1722087230504,5.3359,187.41,187.3,45.0]
[1722087230652,25.3363,187.4,187.3,45.0]
[1722087232871,20.0,187.4,187.29,16.2889]
[1722087233074,5.3364,187.39,187.29,16.2889]
[1722087233284,20.0,187.38,187.29,16.2889]
[1722087233467,25.3367,187.38,187.29,16.2889]
[1722087233667,20.0,187.38,187.29,16.2889]
[1722087235388,20.0,187.4,187.29,16.2889]
[1722087235695,5.3367,187.39,187.29,16.2889]
[1722087235903,25.3368,187.38,187.29,16.2889]
[1722087236198,5.3364,187.39,187.29,16.2889]
[1722087236367,20.0,187.37,187.29,16.2889]
[1722087236570,20.0,187.47,187.31,6.1451]
[1722087236878,10.87066079,187.45,187.32,46.06729042]
[1722087237294,5.3351,187.44,187.32,45.0]
[1722087237981,20.0,187.43,187.32,45.0]
[1722087239189,25.3353,187.43,187.32,45.0]
[1722087239375,20.0,187.43,187.32,45.0]
[1722087239578,20.0,187.43,187.33,16.4179]
[1722087239894,20.0,187.43,187.34,45.0]
[1722087240097,20.0,187.44,187.34,45.0]
[1722087240576,20.0,187.44,187.35,6.1451]
[1722087241178,25.3351,187.44,187.35,6.1451]
[1722087241398,20.0,187.44,187.36,45.0]
[1722087241708,5.53576079,187.45,187.39,24.73]
[1722087241879,5.3332,187.51,187.4,45.0]
[1722087242084,20.0,187.5,187.37,22.563]
[1722087242389,25.334,187.48,187.38,45.0]
[1722087242593,5.3333,187.5,187.38,45.0]
[1722087242777,30.0632,187.51,187.38,45.0]
[1722087243103,5.3335,187.5,187.38,45.0]
[1722087243281,20.0,187.49,187.38,45.0]
[1722087243771,5.3339,187.48,187.38,45.0]
[1722087243975,20.0,187.47,187.38,45.0]
[1722087244694,25.3339,187.48,187.38,45.0]
[1722087245795,25.3339,187.48,187.37,22.563]
[1722087246202,25.3339,187.48,187.33,41.86713473]
[1722087246203,5.3413,187.22,187.13,6.5169]
[1722087246401,14.9614312,187.21,187.14,30.0]
[1722087246695,14.9614312,187.21,187.13,6.5169]
[1722087246696,20.0,187.18,187.13,6.5169]
[1722087246875,21.23960903,187.18,187.11,15.1768]
[1722087247072,1.23960903,187.18,187.11,15.1768]
[1722087247278,8.38012217,187.21,187.12,1.06869998]
[1722087247897,8.38012217,187.21,187.11,15.1768]
[1722087249900,8.38012217,187.21,187.12,45.0]
[1722087250277,8.38012217,187.21,187.07,7.58533458]
[1722087250511,8.38012217,187.21,187.08,1.0686586]
[1722087251997,8.38012217,187.21,187.08,46.0686586]
[1722087252697,25.3407,187.24,187.08,46.0686586]
[1722087252899,20.0,187.23,187.08,46.0686586]
[1722087254702,20.0,187.23,187.08,62.1386586]
[1722087254915,25.3405,187.25,187.08,62.1386586]
[1722087255294,20.0,187.25,187.08,62.1386586]
[1722087255898,20.0,187.26,187.08,62.1386586]
[1722087256111,25.3396,187.28,187.08,62.1386586]
[1722087256404,25.3396,187.28,187.09,0.34]
[1722087256405,1.23960903,187.27,187.09,0.34]
[1722087256608,1.23960903,187.27,187.11,43.89]
[1722087256817,1.23960903,187.27,187.13,16.1604]
[1722087257025,1.23960903,187.27,187.14,46.06829176]
[1722087257325,1.23960903,187.27,187.15,1.06818551]
[1722087257714,1.23960903,187.27,187.15,17.13818551]
[1722087258038,1.23960903,187.27,187.17,6.1061]
[1722087258223,1.23960903,187.27,187.17,7.17419648]
[1722087258522,1.23960903,187.27,187.18,45.0]
[1722087260220,1.23960903,187.27,187.18,46.06809815]
[1722087260909,1.23960903,187.27,187.18,45.0]
[1722087261435,1.23960903,187.27,187.17,6.1061]
[1722087262423,1.23960903,187.27,187.18,45.0]
[1722087263737,1.23960903,187.27,187.17,6.1061]
[1722087272140,20.0,187.28,187.17,6.1061]
[1722087272323,1.23960903,187.27,187.17,6.1061]
[1722087272725,1.23960903,187.27,187.18,45.0]
[1722087273124,1.23960903,187.27,187.18,69.7]
[1722087275542,1.23960903,187.27,187.18,70.76811674]
[1722087277312,20.0,187.34,187.19,16.07]
[1722087277518,24.7,187.37,187.21,24.7]
[1722087277519,20.0,187.36,187.21,24.7]
[1722087277718,10.88874381,187.37,187.21,25.76781882]
[1722087278014,26.3887,187.38,187.22,45.0]
[1722087278325,1.23960903,187.37,187.22,45.0]
[1722087278532,1.23960903,187.37,187.24,24.7]
[1722087278737,1.23960903,187.37,187.25,43.5]
[1722087279842,21.23960903,187.37,187.25,43.5]
[1722087282435,1.23960903,187.37,187.27,24.7]
[1722087282746,1.23960903,187.37,187.28,45.0]
[1722087284545,1.23960903,187.37,187.2,387.4]
[1722087284546,45.93960903,187.37,187.2,387.4]
[1722087284839,1.23960903,187.37,187.22,24.7]
[1722087285042,1.23960903,187.37,187.23,1.06770585]
[1722087285242,20.0,187.38,187.22,24.7]
[1722087285243,20.0,187.39,187.32,15.5941]
[1722087285432,35.1589,187.47,187.34,24.7]
[1722087285638,15.1589,187.47,187.35,1.06726965]
[1722087285833,40.4931,187.47,187.35,45.0]
[1722087286146,20.0,187.45,187.34,24.7]
[1722087286323,20.0,187.45,187.32,15.5941]
[1722087286324,35.1589,187.47,187.32,15.5941]
[1722087286529,20.0,187.44,187.32,15.5941]
[1722087286836,20.0,187.44,187.32,40.2941]
[1722087287358,20.0,187.46,187.32,40.2941]
[1722087287867,15.1589,187.47,187.34,6.6097]
[1722087288027,15.1589,187.47,187.35,45.0]
[1722087288231,20.0,187.49,187.38,24.7]
[1722087288533,20.0,187.53,187.39,45.0]
[1722087288731,20.0,187.51,187.39,45.0]
[1722087288930,20.0,187.52,187.37,25.76705881]
[1722087289136,1.23960903,187.5,187.38,45.0]
[1722087289338,1.23960903,187.5,187.4,24.7]
[1722087289531,1.23960903,187.5,187.41,45.0]
[1722087290153,1.23960903,187.5,187.4,24.7]
[1722087290359,1.23960903,187.5,187.41,45.0]
[1722087290659,1.23960903,187.5,187.42,7.36386834]
[1722087290863,20.0,187.55,187.44,24.7]
[1722087291030,1.23960903,187.54,187.44,24.7]
[1722087291533,20.0,187.53,187.42,6.297]
[1722087291739,1.23960903,187.52,187.42,6.297]
[1722087291934,20.0,187.51,187.42,6.297]
[1722087292150,20.0,187.51,187.37,6.297]
[1722087292338,20.0,187.49,187.37,6.297]
[1722087292542,21.23960903,187.48,187.37,6.297]
[1722087292739,1.23960903,187.47,187.37,6.297]
[1722087293340,21.23960903,187.47,187.37,6.297]
[1722087293641,1.23960903,187.47,187.38,1.06719631]
[1722087293950,1.23960903,187.47,187.37,6.297]
[1722087294157,1.23960903,187.47,187.37,7.36410366]
[1722087294747,1.23960903,187.47,187.38,45.0]
[1722087295337,1.23960903,187.47,187.37,6.297]
[1722087298571,1.23960903,187.47,187.37,7.36408515]
[1722087298969,1.23960903,187.47,187.37,6.297]
[1722087299253,20.0,187.5,187.38,45.0]
[1722087299440,1.23960903,187.5,187.38,45.0]
[1722087302946,1.23960903,187.5,187.39,24.7]
[1722087303148,1.23960903,187.5,187.4,45.0]
[1722087306271,21.23960903,187.5,187.39,24.7]
[1722087306475,36.53880903,187.5,187.37,6.297]
[1722087306681,1.23960903,187.49,187.38,45.0]
[1722087306843,1.23960903,187.49,187.39,24.7]
[1722087307048,1.23960903,187.49,187.4,45.0]
[1722087308571,1.23960903,187.49,187.39,24.7]
[1722087308869,1.23960903,187.49,187.39,25.76700445]
[1722087309063,1.23960903,187.49,187.39,24.7]
[1722087309266,1.23960903,187.49,187.4,46.06688292]
[1722087309458,1.23960903,187.49,187.43,24.7]
[1722087309665,15.8691,187.55,187.46,24.7]
[1722087309866,15.8691,187.55,187.47,1.06665611]
[1722087310068,15.8691,187.55,187.44,24.7]
[1722087310369,15.8691,187.55,187.45,45.0]
[1722087311281,21.201,187.55,187.44,24.7]
[1722087311450,1.23960903,187.54,187.41,24.7]
[1722087311651,21.23960903,187.54,187.42,45.0]
[1722087312159,1.23960903,187.54,187.43,1.06675324]
[1722087312359,1.23960903,187.54,187.43,1.06674233]
[1722087312577,1.23960903,187.54,187.42,46.06672779]
[1722087312784,1.23960903,187.54,187.42,45.0]
[1722087313349,1.23960903,187.54,187.43,1.06667905]
[1722087313577,1.23960903,187.54,187.44,24.7]
[1722087313775,1.23960903,187.54,187.47,24.7]
[1722087313957,6.5363,187.59,187.48,45.0]
[1722087314771,35.8691,187.61,187.48,45.0]
[1722087315484,15.8691,187.61,187.49,1.06632624]
[1722087315691,14.8691,187.61,187.5,24.7]
[1722087315872,14.8691,187.61,187.51,46.06614801]
[1722087316082,14.8691,187.61,187.52,1.06614872]
[1722087316379,25.5131483,187.69,187.53,40.77]
[1722087316380,7.3423483,187.69,187.53,40.77]
[1722087316564,8.58195733,187.69,187.54,46.06589722]
[1722087316767,8.58195733,187.69,187.56,24.7]
[1722087316966,8.58195733,187.69,187.57,45.0]
[1722087317182,8.58195733,187.69,187.57,46.06581818]
[1722087317370,8.58195733,187.69,187.57,45.0]
[1722087317592,28.58195733,187.69,187.57,45.0]
[1722087317894,7.58195733,187.69,187.57,45.0]
[1722087318698,21.1973,187.68,187.57,45.0]
[1722087319067,15.8691,187.68,187.57,45.0]
[1722087319266,5.3288,187.66,187.57,45.0]
[1722087319490,15.8691,187.68,187.57,45.0]
[1722087319697,20.0,187.67,187.53,24.7]
[1722087319910,5.3293,187.64,187.54,45.0]
[1722087320081,41.23960903,187.67,187.53,25.76611914]
[1722087320282,6.56860903,187.66,187.53,25.76611914]
[1722087320873,1.23960903,187.66,187.53,25.76611914]
[1722087321074,1.23960903,187.66,187.53,41.83611914]
[1722087321809,1.23960903,187.65,187.51,1.06589231]
[1722087321983,1.23960903,187.65,187.52,1.06613014]
[1722087322791,1.23960903,187.65,187.53,24.7]
[1722087322999,1.23960903,187.65,187.54,46.06595125]
[1722087323204,1.23960903,187.65,187.54,45.0]
[1722087323407,6.56860903,187.65,187.54,45.0]
[1722087323699,6.56860903,187.65,187.55,1.06610089]
[1722087323906,1.23960903,187.65,187.54,45.0]
[1722087324104,5.3296,187.63,187.54,45.0]
[1722087324302,5.3299,187.62,187.5,24.7]
[1722087324516,34.56230903,187.65,187.51,1.06618313]
[1722087324720,5.3302,187.61,187.5,24.7]
[1722087325095,5.3298,187.63,187.51,1.06628336]
[1722087325302,1.23960903,187.65,187.52,1.06618043]
[1722087326012,1.23960903,187.65,187.51,1.06605091]
[1722087326013,21.23960903,187.65,187.51,1.06605091]
[1722087326307,5.3304,187.61,187.52,1.0661507]
[1722087326495,5.3299,187.62,187.52,1.0661507]
[1722087327011,1.23960903,187.65,187.52,1.0661507]
[1722087327212,6.56870903,187.65,187.52,1.0661507]
[1722087327512,25.3293,187.64,187.52,1.0661507]
[1722087327694,1.23960903,187.65,187.52,1.0661507]
[1722087328195,1.23960903,187.65,187.53,24.7]
[1722087328403,1.23960903,187.65,187.54,46.06600435]
[1722087328703,1.23960903,187.65,187.55,1.06589831]
[1722087328902,15.8691,187.68,187.55,6.3507]
[1722087329099,5.3285,187.67,187.56,45.0]
[1722087329305,5.3288,187.66,187.56,45.0]
[1722087329512,15.8691,187.68,187.56,45.0]
[1722087330119,15.8691,187.68,187.57,1.06590274]
[1722087330410,15.8691,187.68,187.58,1.0657544]
[1722087330709,15.8691,187.68,187.57,1.0657544]
[1722087331112,15.8691,187.68,187.58,1.06575468]
[1722087331698,15.8691,187.68,187.57,1.06575619]
[1722087333318,15.8691,187.68,187.55,6.3507]
[1722087333523,15.8691,187.68,187.55,7.41663076]
[1722087333701,15.8691,187.68,187.56,24.7]
[1722087334215,14.8691,187.68,187.57,1.06585858]
[1722087334919,14.8691,187.68,187.57,46.06585858]
[1722087335894,14.8691,187.68,187.57,45.0]
[1722087336715,14.8691,187.68,187.58,1.06575774]
[1722087338423,16.5509,187.74,187.59,24.7]
[1722087338716,25.3268,187.73,187.6,45.0]
[1722087338921,20.0,187.73,187.61,1.06559692]
[1722087339222,25.3274,187.71,187.59,24.7]
[1722087339412,25.3274,187.71,187.6,1.06580779]
[1722087339413,1.23960903,187.71,187.6,1.06580779]
[1722087339623,1.23960903,187.71,187.59,25.76565542]
[1722087340606,1.23960903,187.71,187.6,45.0]
[1722087340911,1.23960903,187.71,187.6,46.06562765]
[1722087341118,20.0,187.73,187.6,46.06562765]
[1722087341315,16.5509,187.74,187.6,46.06562765]
[1722087341316,16.5509,187.74,187.62,24.7]
[1722087341519,16.5509,187.74,187.63,82.18108067]
[1722087344523,16.548,187.78,187.64,6.2025]
[1722087344723,16.548,187.78,187.65,45.0]
[1722087345102,20.0,187.77,187.65,45.0]
[1722087345309,25.3257,187.77,187.65,45.0]
[1722087345529,5.3259,187.76,187.65,45.0]
[1722087345724,25.3257,187.77,187.65,45.0]
[1722087346231,5.326,187.76,187.64,6.2025]
[1722087347023,20.0,187.75,187.63,16.1156]
[1722087347229,5.3262,187.75,187.63,16.1156]
[1722087347426,20.0,187.75,187.63,16.1156]
[1722087347730,20.0,187.75,187.6,1.06561007]
[1722087347910,5.3268,187.73,187.6,1.06561007]
[1722087348229,20.0,187.75,187.6,1.06561007]
[1722087348437,22.10337851,187.78,187.61,1.06561724]
[1722087348725,20.0,187.77,187.63,40.77]
[1722087348903,20.0,187.77,187.64,45.0]
[1722087349927,20.0,187.77,187.61,1.06543406]
[1722087350124,20.0,187.77,187.63,24.7]
[1722087351124,20.0,187.76,187.63,24.7]
[1722087351322,25.3259,187.76,187.64,45.0]
[1722087351519,25.3259,187.76,187.63,25.76553289]
[1722087352106,5.3259,187.76,187.63,25.76553289]
[1722087352515,25.3259,187.76,187.63,24.7]
[1722087352812,5.3262,187.75,187.64,45.0]
[1722087353321,5.3262,187.75,187.63,24.7]
[1722087353523,25.3265,187.74,187.63,24.7]
[1722087353830,5.3268,187.73,187.63,24.7]
[1722087354129,20.0,187.74,187.63,24.7]
[1722087354329,25.3266,187.74,187.63,24.7]
[1722087354539,5.3268,187.73,187.63,24.7]
[1722087354734,25.3265,187.74,187.63,24.7]
[1722087354930,20.0,187.76,187.63,24.7]
[1722087355142,12.29,187.74,187.67,12.29]
[1722087355327,5.3259,187.76,187.68,12.29]
[1722087355328,12.29,187.75,187.68,12.29]
[1722087356133,25.3259,187.76,187.68,12.29]
[1722087356327,32.29,187.75,187.68,12.29]
[1722087356525,20.0,187.75,187.69,12.29]
[1722087356725,42.10205358,187.78,187.69,12.29]
[1722087356726,12.29,187.77,187.69,12.29]
[1722087356927,20.0,187.76,187.69,12.29]
[1722087357143,20.0,187.76,187.7,12.29]
[1722087357343,20.0,187.77,187.7,12.29]
[1722087358044,20.0,187.77,187.71,12.29]
[1722087358246,20.0,187.77,187.7,12.29]
[1722087359126,20.0,187.77,187.71,12.29]
[1722087359330,16.548,187.78,187.71,12.29]
[1722087359331,28.838,187.78,187.71,12.29]
[1722087359636,9.61154872,187.77,187.65,49.16]
[1722087359837,9.61207815,187.76,187.66,45.0]
[1722087360049,55.39935306,187.78,187.72,12.29]
[1722087360232,9.61207448,187.77,187.72,12.29]
[1722087360433,9.61207448,187.76,187.72,11.29]